lending/lending_fUSD_20241229
["ID","MTS","AMOUNT","RATE_DAILY","PERIOD"]
[347096386,1735494658588,-500.0,0.00017,7]
[347096387,1735494658597,-500.0,0.00017,7]
[347096388,1735494658606,-500.0,0.00017,7]
[347096389,1735494658615,-500.0,0.00017,7]
[347096390,1735494658625,-500.0,0.00017,7]
[347096391,1735494658634,-500.0,0.00017,7]
[347096392,1735494658643,-500.0,0.00017,7]
[347096393,1735494658651,-500.0,0.00017,7]
[347096394,1735494658660,-500.0,0.00017,7]
[347096395,1735494658669,-500.0,0.00017,7]
[347096396,1735494658679,-500.0,0.00017,7]
[347096397,1735494658690,-500.0,0.00017,7]
[347096398,1735494658699,-500.0,0.00017,7]
[347096399,1735494658709,-500.0,0.00017,7]
[347096400,1735494658719,-500.0,0.00017,7]
[347096401,1735494658729,-500.0,0.00017,7]
[347096402,1735494658739,-500.0,0.00017,7]
[347096403,1735494658751,-500.0,0.00017,7]
[347096404,1735494658760,-500.0,0.00017,7]
[347096405,1735494658769,-500.0,0.00017,7]
[347096406,1735494658780,-500.0,0.00017,7]
[347096407,1735494658791,-509.01,0.00017,7]
[347096408,1735494658801,-500.0,0.00017,7]
[347096409,1735494658810,-500.0,0.00017,7]
[347096410,1735494658819,-500.0,0.00017,7]
[347096411,1735494658828,-500.0,0.00017,7]
[347096412,1735494658837,-500.0,0.00017,7]
[347096413,1735494658846,-500.0,0.00017,7]
[347096414,1735494658855,-500.0,0.00017,7]
[347096415,1735494658865,-500.0,0.00017,7]
[347096416,1735494658874,-500.0,0.00017,7]
[347096417,1735494658883,-500.0,0.00017,7]
[347096418,1735494658892,-500.0,0.00017,7]
[347096419,1735494658902,-500.0,0.00017,7]
[347096420,1735494658911,-540.52,0.00017,7]
[347096421,1735494658920,-109841.25853228,0.00017,2]
[347096422,1735494658929,-1251.25454353,0.00017,2]
[347096423,1735494658939,-7725.0,0.00017,2]
[347096424,1735494658948,-1835.06,0.0001701,2]
[347096425,1735494658957,-500.0,0.0001701,2]
[347096426,1735494658967,-588.42,0.0001701,2]
[347096427,1735494658975,-1459.54,0.0001701,2]
[347096428,1735494658984,-871.09,0.00017011,2]
[347096429,1735494658993,-500.0,0.00017012,2]
[347096430,1735494659003,-1870.06,0.00017012,2]
[347096431,1735494659011,-500.0,0.00017012,2]
[347096432,1735494659020,-546.5,0.00017012,2]
[347096433,1735494659030,-512.93,0.00017013,2]
[347096434,1735494659038,-2201.67,0.00017013,2]
[347096435,1735494659047,-634.13,0.00017013,2]
[347096436,1735494659058,-1185.94,0.00017013,2]
[347096437,1735494659067,-709.12,0.00017013,2]
[347096438,1735494659077,-564.41,0.00017013,2]
[347096439,1735494659086,-845.01,0.00017013,2]
[347096440,1735494659096,-739.8,0.00017013,2]
[347096441,1735494659108,-725.67,0.00017013,2]
[347096442,1735494659117,-655.67,0.00017013,2]
[347096443,1735494659127,-1059.36,0.00017013,2]
[347096444,1735494659136,-743.25,0.00017013,2]
[347096445,1735494659145,-618.35,0.00017013,2]
[347096446,1735494659156,-925.05,0.00017013,2]
[347096447,1735494659165,-266.2515054,0.00017014,2]
[347096448,1735494659174,-221.8762545,0.00017014,2]
[347096449,1735494659184,-221.8762545,0.00017014,2]
[347096450,1735494659195,-574.37,0.00017014,2]
[347096451,1735494659205,-4185.08,0.00017014,2]
[347096452,1735494659214,-500.0,0.00017014,2]
[347096453,1735494659224,-150.0,0.00017015,2]
[347096454,1735494659233,-150.0,0.00017019,2]
[347096455,1735494659242,-150.0,0.00017037,2]
[347096456,1735494659252,-221.8762545,0.00017041,2]
[347096457,1735494659261,-443.75250901,0.00017041,2]
[347096458,1735494659270,-150.0,0.00017043,2]
[347096459,1735494659280,-151.3553626,0.00017047,2]
[347096460,1735494659289,-887.50501801,0.00017068,2]
[347096461,1735494659298,-150.0,0.00017083,2]
[347096462,1735494659307,-266.2515054,0.00017096,2]
[347096463,1735494659316,-221.8762545,0.00017096,2]
[347096464,1735494659324,-221.8762545,0.00017096,2]
[347096465,1735494659333,-221.8762545,0.00017123,2]
[347096466,1735494659343,-443.75250901,0.00017123,2]
[347096467,1735494659351,-250.0,0.00017123,2]
[347096468,1735494659360,-150.0,0.00017137,2]
[347096469,1735494659370,-887.50501801,0.00017151,2]
[347096470,1735494659379,-150.0,0.0001716,2]
[347096471,1735494659388,-152.0,0.0001717,5]
[347096472,1735494659397,-500.0,0.00017178,2]
[347096473,1735494659407,-900.0,0.00017178,2]
[347096474,1735494659416,-266.2515054,0.00017178,2]
[347096475,1735494659426,-221.8762545,0.00017178,2]
[347096476,1735494659435,-221.8762545,0.00017178,2]
[347096477,1735494659444,-150.0,0.0001718,2]
[347096478,1735494659453,-150.0,0.00017192,2]
[347096479,1735494659466,-150.0,0.00017198,2]
[347096480,1735494659475,-150.0,0.00017203,2]
[347096481,1735494659484,-887.50501801,0.00017205,2]
[347096482,1735494659493,-221.8762545,0.00017205,2]
[347096483,1735494659502,-443.75250901,0.00017205,2]
[347096484,1735494659512,-150.0,0.00017232,2]
[347096485,1735494659522,-150.0,0.00017233,2]
[347096486,1735494659531,-1500.0,0.00017233,2]
[347096487,1735494659540,-2504.01,0.00017235,7]
[347096488,1735494659548,-2504.01,0.00017235,7]
[347096489,1735494659558,-150.0,0.0001726,2]
[347096490,1735494659567,-266.2515054,0.0001726,2]
[347096491,1735494659576,-221.8762545,0.0001726,2]
[347096492,1735494659585,-221.8762545,0.0001726,2]
[347096493,1735494659594,-150.0,0.00017276,2]
[347096494,1735494659603,-1835.06,0.00017284,2]
[347096495,1735494659612,-500.0,0.00017284,2]
[347096496,1735494659622,-588.42,0.00017284,2]
[347096497,1735494659631,-1459.54,0.00017284,2]
[347096498,1735494659640,-871.09,0.00017285,2]
[347096499,1735494659649,-150.0,0.00017286,2]
[347096500,1735494659658,-518.76907292,0.00017286,2]
[347096501,1735494659667,-1870.06,0.00017286,2]
[347096502,1735494659677,-384.07836658,0.00017286,2]
[347096503,1735494659686,-546.5,0.00017286,2]
[347096504,1735494659694,-512.93,0.00017287,2]
[347096505,1735494659703,-2201.67,0.00017287,2]
[347096506,1735494659713,-634.13,0.00017287,2]
[347096507,1735494659723,-1185.94,0.00017287,2]
[347096508,1735494659732,-709.12,0.00017287,2]
[347096509,1735494659741,-564.41,0.00017287,2]
[347096510,1735494659750,-845.01,0.00017287,2]
[347096511,1735494659759,-739.8,0.00017287,2]
[347096512,1735494659769,-725.67,0.00017287,2]
[347096513,1735494659777,-655.67,0.00017287,2]
[347096514,1735494659786,-1059.36,0.00017287,2]
[347096515,1735494659796,-743.25,0.00017287,2]
[347096516,1735494659805,-618.35,0.00017287,2]
[347096517,1735494659814,-925.05,0.00017287,2]
[347096518,1735494659824,-887.50501801,0.00017288,2]
[347096519,1735494659832,-221.8762545,0.00017288,2]
[347096520,1735494659842,-443.75250901,0.00017288,2]
[347096521,1735494659851,-574.37,0.00017288,2]
[347096522,1735494659860,-4185.08,0.00017288,2]
[347096523,1735494659870,-500.0,0.00017288,2]
[347096524,1735494659879,-502.3,0.00017289,2]
[347096525,1735494659888,-381.13299193,0.000173,2]
[347096526,1735494659898,-150.0,0.00017312,2]
[347096527,1735494659907,-150.0,0.00017317,2]
[347096528,1735494659917,-150.0,0.00017322,2]
[347096529,1735494659926,-150.0,0.00017326,2]
[347096530,1735494659935,-266.2515054,0.00017342,2]
[347096531,1735494659944,-221.8762545,0.00017342,2]
[347096532,1735494659953,-221.8762545,0.00017342,2]
[347096533,1735494659962,-150.0,0.00017346,2]
[347096534,1735494659972,-150.0,0.00017356,2]
[347096535,1735494659982,-150.0,0.00017363,2]
[347096536,1735494659990,-150.0,0.00017363,2]
[347096537,1735494659999,-1690.11,0.00017363,2]
[347096538,1735494660008,-150.0,0.00017368,2]
[347096539,1735494660017,-887.50501801,0.0001737,2]
[347096540,1735494660026,-221.8762545,0.0001737,2]
[347096541,1735494660036,-443.75250901,0.0001737,2]
[347096542,1735494660045,-1001.78358906,0.0001737,2]
[347096543,1735494660055,-150.0,0.00017376,2]
[347096544,1735494660064,-504546.61654055,0.0001738,2]
[347096545,1735494660074,-221.8762545,0.00017397,2]
[347096546,1735494660083,-221.8762545,0.00017397,2]
[347096547,1735494660092,-2735239.73502146,0.000174,2]
[347096548,1735494660376,-932.02,0.000174,2]
[347096549,1735494660546,-500.0,0.00013177,2]
[347096550,1735494660555,-1191.93,0.00015096,2]
[347096551,1735494660564,-1191.93,0.0001537,2]
[347096552,1735494660574,-3931.35,0.00015917,2]
[347096553,1735494660583,-3460.85364282,0.00016191,2]
[347096554,1735494660594,-470.49635718,0.00016191,2]
[347096555,1735494660603,-1722.61,0.00016465,2]
[347096556,1735494660612,-1722.61,0.00016739,2]
[347096557,1735494660621,-4349.59573291,0.000174,2]
[347096558,1735494660632,-1009.72500001,0.000174,2]
[347096559,1735494660896,-1000.0,0.00011433,2]
[347096560,1735494660906,-500.0,0.00011532,2]
[347096561,1735494660915,-500.0,0.00011806,2]
[347096562,1735494660924,-407.8,0.0001208,2]
[347096563,1735494660933,-500.0,0.00012352,2]
[347096564,1735494660942,-500.0,0.00012626,2]
[347096565,1735494660951,-127.13088104,0.00012803,2]
[347096566,1735494660968,-500.0,0.00011532,2]
[347096567,1735494660978,-1440.1770931,0.00012803,2]
[347096568,1735494660987,-500.0,0.00013451,2]
[347096569,1735494660996,-500.0,0.00013725,2]
[347096570,1735494661005,-500.0,0.00013999,2]
[347096571,1735494661014,-500.0,0.00014273,2]
[347096572,1735494661023,-1191.93,0.00015644,2]
[347096573,1735494661032,-1191.93,0.00015918,2]
[347096574,1735494661041,-2507.45023686,0.00016465,2]
[347096575,1735494661057,-1423.89976314,0.00016465,2]
[347096576,1735494661066,-3931.35,0.00016739,2]
[347096577,1735494661075,-1722.61,0.00017013,2]
[347096578,1735494661084,-3931.35,0.00017013,2]
[347096579,1735494661093,-1722.61,0.00017287,2]
[347096580,1735494661102,-1349.00903686,0.000174,2]
[347096581,1735494661114,-20800.75125561,0.000174,2]
[347096582,1735494661450,-500.0,0.00011532,2]
[347096583,1735494661464,-500.0,0.00011806,2]
[347096584,1735494661478,-548.33,0.00011806,2]
[347096585,1735494661492,-490.84,0.00012078,2]
[347096586,1735494661506,-583.19,0.0001208,2]
[347096587,1735494661517,-500.0,0.000129,2]
[347096588,1735494661529,-500.0,0.00012904,2]
[347096589,1735494661543,-500.0,0.00012904,2]
[347096590,1735494661556,-500.0,0.00013174,2]
[347096591,1735494661569,-500.0,0.00013178,2]
[347096592,1735494661581,-500.0,0.00013448,2]
[347096593,1735494661595,-500.0,0.00013452,2]
[347096594,1735494661609,-500.0,0.00014547,2]
[347096595,1735494661623,-500.0,0.00014821,2]
[347096596,1735494661636,-470.26911878,0.00015095,2]
[347096597,1735494661649,-1191.93,0.00016192,2]
[347096598,1735494661663,-1191.93,0.00016466,2]
[347096599,1735494661675,-1191.93,0.0001674,2]
[347096600,1735494661688,-1191.93,0.00017014,2]
[347096601,1735494661703,-3931.35,0.00017287,2]
[347096602,1735494661715,-349341.27735236,0.000174,2]
[347096603,1735494661730,-20678.3996,0.000174,2]
[347096604,1735494661743,-27318.72952599,0.000174,2]
[347096605,1735494661759,-510.00939672,0.000174,2]
[347096606,1735494661776,-406.08639556,0.000174,2]
[347096607,1735494661790,-426.4587781,0.000174,2]
[347096608,1735494661802,-28173.00000001,0.000174,2]
[347096609,1735494661819,-17539.02096384,0.000174,2]
[347096612,1735495091938,361.61,9.713e-05,2]
[347096613,1735495147119,500.0,0.00016654,120]
[347096614,1735495147393,500.0,0.00016682,120]
[347096615,1735495147672,500.0,0.00016709,120]
[347096616,1735495147944,183.76,0.00016736,120]
[347096617,1735495174551,207.78,0.00010137,2]
[347096620,1735495735234,1000.0,0.00010883,2]
[347096629,1735495831828,-166.66666667,0.00011124,2]
[347096630,1735495831838,-666.73418306,0.00011174,2]
[347096631,1735495831847,-250.0,0.00011274,2]
[347096632,1735495831857,-20094.69512526,0.00011274,2]
[347096633,1735495831966,-69492.80079537,0.00011274,2]
[347096634,1735495831975,-50000.0,0.00011274,2]
[347096635,1735495831985,-152.18,0.00011324,2]
[347096636,1735495831995,-497.78,0.00011431,2]
[347096637,1735495832005,-490.9,0.00011431,2]
[347096638,1735495832015,-507.96,0.00011431,2]
[347096639,1735495832025,-500.78,0.00011431,2]
[347096640,1735495832035,-504.29,0.00011431,2]
[347096641,1735495832044,-501.32,0.00011431,2]
[347096642,1735495832054,-509.38,0.00011431,2]
[347096643,1735495832063,-498.48,0.00011431,2]
[347096644,1735495832073,-508.68,0.00011431,2]
[347096645,1735495832082,-1000.0,0.00011431,2]
[347096646,1735495832092,-165.83227182,0.00011432,2]
[347096647,1735495832101,-2500.0,0.00011432,2]
[347096648,1735495832110,-1593.57197401,0.00011433,2]
[347096649,1735495832123,-1464.22517346,0.00011433,2]
[347096650,1735495832135,-295.44814184,0.00011433,2]
[347096651,1735495832146,-1646.75471069,0.00011433,2]
[347096652,1735495832155,-11704.65310997,0.00011433,2]
[347096653,1735495832167,-10905.45665932,0.00011433,2]
[347096654,1735495832210,-10119.34244395,0.00011433,2]
[347096672,1735495837815,-5207.52621237,0.00011433,2]
[347096673,1735495837968,-956.23522534,0.00011433,2]
[347096802,1735495839877,-337.31441769,0.00011433,2]
[347096803,1735495839888,-3140.15000001,0.00011433,2]
[347096804,1735495839946,-9157.73043135,0.00011433,2]
[347096805,1735495839956,-500.0,0.00011531,2]
[347096806,1735495839966,-500.0,0.00011531,2]
[347096807,1735495839975,-500.0,0.00011531,2]
[347096808,1735495839984,-500.0,0.00011531,2]
[347096809,1735495839993,-500.0,0.00011531,2]
[347096810,1735495840003,-500.0,0.00011531,2]
[347096811,1735495840012,-614.32,0.00011531,2]
[347096812,1735495840021,-500.0,0.00011531,2]
[347096813,1735495840030,-500.0,0.00011531,2]
[347096814,1735495840039,-500.0,0.00011531,2]
[347096815,1735495840048,-500.0,0.00011531,2]
[347096816,1735495840057,-500.0,0.00011531,2]
[347096817,1735495840066,-500.0,0.00011531,2]
[347096818,1735495840076,-500.0,0.00011531,2]
[347096819,1735495840085,-500.0,0.00011531,2]
[347096820,1735495840094,-500.0,0.00011531,2]
[347096821,1735495840103,-4042.6,0.00011531,2]
[347096822,1735495840113,-500.0,0.00011531,2]
[347096823,1735495840122,-603.32,0.00011531,2]
[347096824,1735495840131,-500.0,0.00011531,2]
[347096825,1735495840140,-500.0,0.00011531,2]
[347096826,1735495840149,-500.0,0.00011531,2]
[347096827,1735495840159,-500.0,0.00011531,2]
[347096828,1735495840168,-500.0,0.00011531,2]
[347096829,1735495840177,-500.0,0.00011532,2]
[347096830,1735495840188,-500.0,0.00011532,2]
[347096831,1735495840198,-500.0,0.00011532,2]
[347096832,1735495840207,-500.0,0.00011532,2]
[347096833,1735495840216,-500.0,0.00011532,2]
[347096835,1735495840225,-479.98429881,0.00011532,2]
[347096836,1735495840234,-500.57721591,0.00011532,2]
[347096837,1735495840243,-500.0,0.00011532,2]
[347096838,1735495840253,-500.0,0.00011532,2]
[347096839,1735495840262,-500.0,0.00011532,2]
[347096840,1735495840272,-500.0,0.00011532,2]
[347096841,1735495840282,-560.44,0.00011532,2]
[347096842,1735495840291,-500.0,0.00011532,2]
[347096843,1735495840300,-500.0,0.00011532,2]
[347096844,1735495840309,-500.0,0.00011532,2]
[347096845,1735495840319,-500.0,0.00011532,2]
[347096846,1735495840328,-500.0,0.00011532,2]
[347096847,1735495840338,-500.0,0.00011532,2]
[347096848,1735495840348,-500.0,0.00011532,2]
[347096849,1735495840357,-500.0,0.00011532,2]
[347096850,1735495840367,-500.0,0.00011532,2]
[347096851,1735495840376,-521.35,0.00011532,2]
[347096852,1735495840386,-500.0,0.00011532,2]
[347096853,1735495840395,-500.0,0.00011532,2]
[347096854,1735495840404,-500.0,0.00011532,2]
[347096855,1735495840413,-552.28,0.00011532,2]
[347096856,1735495840422,-500.0,0.00011532,2]
[347096857,1735495840430,-500.0,0.00011532,2]
[347096858,1735495840440,-500.0,0.00011532,2]
[347096859,1735495840449,-500.0,0.00011532,2]
[347096860,1735495840458,-500.0,0.00011532,2]
[347096861,1735495840467,-500.0,0.00011532,2]
[347096862,1735495840478,-500.0,0.00011532,2]
[347096863,1735495840489,-500.0,0.00011532,2]
[347096864,1735495840498,-500.0,0.00011532,2]
[347096865,1735495840508,-500.0,0.00011532,2]
[347096866,1735495840518,-500.0,0.00011532,2]
[347096867,1735495840527,-500.95269508,0.00011532,2]
[347096868,1735495840535,-500.0,0.00011532,2]
[347096869,1735495840544,-508.50675645,0.00011532,2]
[347096870,1735495840556,-500.0,0.00011532,2]
[347096871,1735495840565,-500.0,0.00011532,2]
[347096872,1735495840575,-500.0,0.00011532,2]
[347096873,1735495840584,-501.80236552,0.00011532,2]
[347096874,1735495840594,-500.0,0.00011532,2]
[347096875,1735495840605,-500.0,0.00011532,2]
[347096876,1735495840614,-500.0,0.00011532,2]
[347096877,1735495840624,-446.43344808,0.00011532,2]
[347096878,1735495840633,-500.0,0.00011532,2]
[347096879,1735495840642,-500.0,0.00011532,2]
[347096880,1735495840652,-500.0,0.00011532,2]
[347096881,1735495840662,-500.0,0.00011532,2]
[347096882,1735495840672,-500.0,0.00011532,2]
[347096883,1735495840681,-500.57638175,0.00011532,2]
[347096884,1735495840690,-500.0,0.00011532,2]
[347096885,1735495840699,-500.0,0.00011532,2]
[347096886,1735495840708,-500.0,0.00011532,2]
[347096887,1735495840717,-500.0,0.00011532,2]
[347096888,1735495840726,-500.0,0.00011532,2]
[347096889,1735495840735,-491.94474219,0.00011532,2]
[347096890,1735495840744,-500.0,0.00011532,2]
[347096891,1735495840753,-500.0,0.00011532,2]
[347096892,1735495840762,-500.0,0.00011532,2]
[347096893,1735495840771,-500.0,0.00011532,2]
[347096894,1735495840780,-500.0,0.00011532,2]
[347096895,1735495840791,-500.0,0.00011532,2]
[347096896,1735495840803,-500.0,0.00011532,2]
[347096897,1735495840813,-500.0,0.00011532,2]
[347096898,1735495840822,-500.0,0.00011532,2]
[347096899,1735495840831,-500.0,0.00011532,2]
[347096900,1735495840840,-500.0,0.00011532,2]
[347096901,1735495840849,-601.61726463,0.00011532,2]
[347096902,1735495840858,-500.0,0.00011532,2]
[347096903,1735495840868,-500.0,0.00011532,2]
[347096904,1735495840877,-500.0,0.00011532,2]
[347096905,1735495840886,-500.39145928,0.00011532,2]
[347096906,1735495840895,-500.0,0.00011532,2]
[347096907,1735495840906,-500.0,0.00011532,2]
[347096908,1735495840917,-500.0,0.00011532,2]
[347096909,1735495840926,-500.0,0.00011532,2]
[347096910,1735495840939,-569.43252413,0.00011532,2]
[347096911,1735495840949,-508.7155407,0.00011532,2]
[347096912,1735495840958,-500.0,0.00011532,2]
[347096913,1735495840968,-500.0,0.00011532,2]
[347096914,1735495840978,-500.0,0.00011532,2]
[347096915,1735495840987,-301.30443471,0.00011532,2]
[347096916,1735495840996,-500.0,0.00011532,2]
[347096917,1735495841007,-500.0,0.00011532,2]
[347096918,1735495841016,-500.0,0.00011532,2]
[347096919,1735495841026,-500.0,0.00011532,2]
[347096920,1735495841035,-500.0,0.00011532,2]
[347096921,1735495841044,-500.0,0.00011532,2]
[347096922,1735495841053,-500.0,0.00011532,2]
[347096923,1735495841062,-500.0,0.00011532,2]
[347096924,1735495841071,-501.13560486,0.00011532,2]
[347096925,1735495841080,-500.84923447,0.00011532,2]
[347096926,1735495841089,-622.85,0.00011532,2]
[347096927,1735495841098,-500.0,0.00011532,2]
[347096928,1735495841108,-500.0,0.00011532,2]
[347096929,1735495841118,-500.0,0.00011532,2]
[347096930,1735495841126,-501.9046427,0.00011532,2]
[347096931,1735495841135,-500.0,0.00011532,2]
[347096932,1735495841144,-500.0,0.00011532,2]
[347096933,1735495841153,-501.47375587,0.00011532,2]
[347096934,1735495841162,-500.0,0.00011532,2]
[347096935,1735495841172,-500.0,0.00011532,2]
[347096936,1735495841181,-500.0,0.00011532,2]
[347096937,1735495841189,-500.0,0.00011532,2]
[347096938,1735495841198,-500.0,0.00011532,2]
[347096939,1735495841207,-625.99,0.00011532,2]
[347096940,1735495841216,-500.0,0.00011532,2]
[347096941,1735495841226,-500.0,0.00011532,2]
[347096942,1735495841235,-500.0,0.00011532,2]
[347096943,1735495841244,-500.0,0.00011532,2]
[347096944,1735495841253,-500.0,0.00011532,2]
[347096945,1735495841263,-500.0,0.00011532,2]
[347096946,1735495841272,-500.0,0.00011532,2]
[347096947,1735495841281,-500.0,0.00011532,2]
[347096948,1735495841290,-500.0,0.00011532,2]
[347096949,1735495841299,-500.0,0.00011532,2]
[347096950,1735495841308,-500.0,0.00011532,2]
[347096951,1735495841317,-500.0,0.00011532,2]
[347096952,1735495841327,-500.0,0.00011532,2]
[347096953,1735495841335,-277.27380057,0.00011532,2]
[347096954,1735495841345,-501.73844138,0.00011532,2]
[347096955,1735495841354,-500.0,0.00011532,2]
[347096956,1735495841363,-500.0,0.00011532,2]
[347096957,1735495841372,-500.0,0.00011532,2]
[347096958,1735495841381,-500.0,0.00011532,2]
[347096959,1735495841390,-500.0,0.00011532,2]
[347096960,1735495841400,-612.19,0.00011532,2]
[347096961,1735495841409,-500.0,0.00011532,2]
[347096962,1735495841418,-500.0,0.00011532,2]
[347096963,1735495841427,-500.0,0.00011532,2]
[347096964,1735495841436,-500.0,0.00011532,2]
[347096965,1735495841446,-500.0,0.00011532,2]
[347096966,1735495841455,-500.0,0.00011532,2]
[347096967,1735495841464,-500.0,0.00011532,2]
[347096968,1735495841474,-169.91907136,0.00011532,2]
[347096969,1735495841483,-500.0,0.00011532,2]
[347096970,1735495841491,-500.0,0.00011532,2]
[347096971,1735495841501,-500.0,0.00011532,2]
[347096972,1735495841511,-501.07254316,0.00011532,2]
[347096973,1735495841520,-500.0,0.00011532,2]
[347096974,1735495841529,-500.0,0.00011532,2]
[347096975,1735495841538,-500.0,0.00011532,2]
[347096976,1735495841547,-500.0,0.00011532,2]
[347096977,1735495841557,-573.75,0.00011532,2]
[347096978,1735495841567,-514.27,0.00011532,2]
[347096979,1735495841576,-500.0,0.00011532,2]
[347096980,1735495841585,-500.0,0.00011532,2]
[347096981,1735495841595,-500.0,0.00011532,2]
[347096982,1735495841605,-500.0,0.00011532,2]
[347096983,1735495841615,-501.23677875,0.00011532,2]
[347096984,1735495841624,-500.0,0.00011532,2]
[347096985,1735495841633,-487.54138547,0.00011532,2]
[347096986,1735495841642,-500.0,0.00011532,2]
[347096987,1735495841651,-500.0,0.00011532,2]
[347096988,1735495841660,-626.36045378,0.00011532,2]
[347096989,1735495841669,-500.0,0.00011532,2]
[347096990,1735495841678,-500.0,0.00011532,2]
[347096991,1735495841687,-500.0,0.00011532,2]
[347096992,1735495841696,-500.0,0.00011532,2]
[347096993,1735495841705,-500.0,0.00011532,2]
[347096994,1735495841715,-500.0,0.00011532,2]
[347096995,1735495841724,-500.0,0.00011532,2]
[347096996,1735495841733,-500.0,0.00011532,2]
[347096997,1735495841743,-556.83,0.00011532,2]
[347096998,1735495841753,-500.0,0.00011532,2]
[347096999,1735495841762,-531.21,0.00011532,2]
[347097000,1735495841772,-500.59908688,0.00011532,2]
[347097001,1735495841782,-500.0,0.00011532,2]
[347097002,1735495841792,-500.0,0.00011532,2]
[347097003,1735495841801,-440.47796937,0.00011532,2]
[347097004,1735495841810,-500.0,0.00011532,2]
[347097005,1735495841819,-500.0,0.00011532,2]
[347097006,1735495841828,-499.67642573,0.00011532,2]
[347097007,1735495841837,-500.0,0.00011532,2]
[347097008,1735495841847,-500.0,0.00011532,2]
[347097009,1735495841856,-500.0,0.00011532,2]
[347097010,1735495841865,-500.0,0.00011532,2]
[347097011,1735495841874,-500.0,0.00011532,2]
[347097012,1735495841883,-500.0,0.00011532,2]
[347097013,1735495841893,-500.0,0.00011532,2]
[347097014,1735495841902,-500.88557418,0.00011532,2]
[347097015,1735495841911,-511.77639232,0.00011532,2]
[347097016,1735495841920,-547.27438089,0.00011532,2]
[347097017,1735495841929,-258.43622507,0.00011532,2]
[347097018,1735495841942,-500.0,0.00011532,2]
[347097019,1735495841950,-500.0,0.00011532,2]
[347097020,1735495841959,-500.0,0.00011532,2]
[347097021,1735495841968,-500.0,0.00011532,2]
[347097022,1735495841977,-500.0,0.00011532,2]
[347097023,1735495841986,-500.0,0.00011532,2]
[347097024,1735495841995,-525.75510047,0.00011532,2]
[347097025,1735495842003,-500.0,0.00011532,2]
[347097026,1735495842012,-500.0,0.00011532,2]
[347097027,1735495842022,-500.0,0.00011532,2]
[347097028,1735495842031,-500.0,0.00011532,2]
[347097029,1735495842043,-500.0,0.00011532,2]
[347097030,1735495842053,-189.99105,0.00011532,2]
[347097031,1735495842062,-154.695736,0.00011532,2]
[347097032,1735495842287,-367.070135,0.00011532,2]
[347097033,1735495842297,-523.38,0.00011532,2]
[347097034,1735495842306,-500.0,0.00011532,2]
[347097035,1735495842315,-788.53,0.00011532,2]
[347097036,1735495842324,-298.91352,0.00011532,2]
[347097037,1735495842334,-500.0,0.00011532,2]
[347097038,1735495842343,-500.0,0.00011532,2]
[347097039,1735495842352,-515.28,0.00011532,2]
[347097040,1735495842361,-500.0,0.00011532,2]
[347097041,1735495842370,-500.0,0.00011532,2]
[347097042,1735495842379,-500.0,0.00011532,2]
[347097043,1735495842388,-500.0,0.00011532,2]